bitfinex/quotes_ETHUSD_20250213
["timestamp","ask_amount","ask_price","bid_price","bid_amount"]
[1739462353368,3.77466,2649.3,2648.8,3.77527]
[1739462353569,3.78215,2649.3,2648.7,4.52934]
[1739462353787,0.05010635,2649.2,2648.7,4.52934]
[1739462353970,3.82493635,2649.2,2648.7,3.77534]
[1739462354283,4.58564499,2649.2,2648.7,3.77534]
[1739462354486,3.77495,2649.1,2648.6,3.77557]
[1739462354858,0.0487451,2649.0,2648.6,3.77557]
[1739462355075,0.0487451,2649.0,2648.5,3.0]
[1739462355269,0.0487451,2649.0,2648.6,3.77547]
[1739462355480,0.0075,2649.3,2648.8,3.77524]
[1739462355682,3.77455,2649.4,2648.9,3.77515]
[1739462355884,3.77486,2649.1,2648.6,3.77547]
[1739462356306,0.0487451,2649.0,2648.8,3.77519]
[1739462356468,3.7746,2649.3,2648.8,3.77519]
[1739462356913,0.0487451,2649.2,2648.8,3.77519]
[1739462357118,0.0487451,2649.2,2648.7,3.77532]
[1739462357275,0.015,2649.0,2648.5,3.77562]
[1739462357476,3.77501,2649.0,2648.4,3.77575]
[1739462357690,3.77501,2649.0,2648.5,3.77563]
[1739462357865,0.0487451,2648.9,2648.5,3.77563]
[1739462358067,0.0487451,2648.9,2648.6,3.77555]
[1739462358412,0.0487451,2648.9,2648.6,3.77557]
[1739462358914,3.77492,2649.1,2648.6,3.77551]
[1739462359086,0.0487451,2648.8,2648.6,3.77551]
[1739462359419,3.77492,2649.1,2648.6,3.77551]
[1739462359592,0.015,2649.1,2648.7,3.77536]
[1739462359790,3.7899,2649.1,2648.6,3.77551]
[1739462360012,3.7899,2649.1,2648.6,3.77548]
[1739462360215,0.015,2649.1,2648.8,3.77529]
[1739462360417,2.269,2649.4,2649.0,3.77499]
[1739462360720,5.28,2649.5,2649.0,3.77488]
[1739462361013,5.28,2649.5,2649.2,3.7747]
[1739462361217,5.28,2649.7,2649.2,3.7747]
[1739462361520,9.05403,2649.7,2649.2,3.77465]
[1739462361892,2.269,2649.6,2649.2,7.54929]
[1739462362123,2.269,2649.6,2649.2,0.754929]
[1739462362278,5.28,2649.7,2649.5,3.77429]
[1739462362615,5.28,2649.7,2649.6,3.77415]
[1739462363538,5.28,2649.7,2649.1,0.828]
[1739462363539,7.549,2649.7,2649.1,0.828]
[1739462363838,7.59824086,2649.7,2649.1,0.828]
[1739462364051,11.37238086,2649.7,2648.8,0.7817]
[1739462364222,2.269,2649.5,2649.1,3.77482]
[1739462364411,2.269,2649.5,2648.8,1.237421]
[1739462364737,0.04931613,2649.4,2649.2,7.54918]
[1739462364932,0.04931613,2649.4,2649.2,3.77458]
[1739462365492,0.04931613,2649.4,2649.3,3.77458]
[1739462365698,2.269,2649.6,2649.4,3.77443]
[1739462366440,2.269,2649.6,2649.2,3.77458]
[1739462366791,2.269,2649.6,2649.3,3.77456]
[1739462367407,2.269,2649.6,2649.4,3.77436]
[1739462367609,2.269,2649.6,2649.3,3.77456]
[1739462367810,2.269,2649.6,2649.5,3.77429]
[1739462368211,5.28,2649.7,2649.6,3.77415]
[1739462368538,5.28,2649.7,2649.5,4.529061]
[1739462369209,5.28,2649.7,2649.6,3.77415]
[1739462369915,5.28,2649.7,2649.5,3.77419]
[1739462370246,5.28,2649.7,2649.4,0.7891]
[1739462370453,5.28,2649.7,2649.4,4.56349]
[1739462370815,2.269,2650.0,2649.4,0.7891]
[1739462371160,2.269,2650.2,2649.9,3.77372]
[1739462371323,6.04231,2650.2,2649.8,3.77385]
[1739462371525,6.04231,2650.2,2649.7,3.774]
[1739462371744,2.269,2650.2,2649.8,3.77385]
[1739462372375,2.269,2650.2,2649.6,3.77405]
[1739462372512,6.04232,2650.2,2649.7,3.77392]
[1739462372711,2.269,2650.0,2649.7,3.77392]
[1739462373471,2.269,2650.0,2649.4,4.56343]
[1739462373777,2.269,2650.1,2649.7,3.77394]
[1739462374642,2.269,2650.1,2649.8,3.77385]
[1739462375173,2.269,2650.1,2649.3,3.77445]
[1739462375174,0.015,2650.0,2649.3,3.77445]
[1739462375330,2.269,2649.6,2649.3,3.77448]
[1739462375543,2.269,2649.6,2649.5,3.77429]
[1739462375717,2.269,2650.0,2649.6,3.77412]
[1739462375923,2.269,2650.0,2649.7,3.77394]
[1739462376124,2.269,2650.0,2649.9,3.77372]
[1739462376471,2.269,2650.2,2649.5,3.77424]
[1739462376677,2.269,2650.0,2649.7,3.77393]
[1739462376884,2.269,2650.0,2649.8,3.77375]
[1739462377561,6.0423,2650.2,2649.8,3.77375]
[1739462377727,6.0423,2650.2,2649.7,3.77393]
[1739462377933,2.269,2650.0,2649.6,3.77408]
[1739462378973,0.04974905,2649.9,2649.7,3.774]
[1739462379182,0.04974905,2649.9,2649.6,3.77409]
[1739462379391,2.31874905,2649.9,2649.5,4.151714]
[1739462379688,2.31874905,2649.9,2649.7,3.77399]
[1739462380063,2.31874905,2649.9,2649.7,3.77394]
[1739462380432,0.04974905,2649.9,2649.7,7.54788]
[1739462380864,2.269,2650.1,2649.7,3.77394]
[1739462381077,2.269,2650.1,2649.8,3.7738]
[1739462381387,2.269,2650.1,2650.0,3.77358]
[1739462381858,2.269,2650.4,2649.9,3.7737]
[1739462382023,2.269,2650.4,2650.2,3.77328]
[1739462382325,2.269,2650.4,2650.1,3.77342]
[1739462382621,2.269,2650.4,2650.1,7.5467]
[1739462382781,3.78009,2650.7,2650.4,3.77301]
[1739462382782,2.269,2650.7,2650.4,3.77301]
[1739462382969,2.269,2650.7,2650.4,0.02796273]
[1739462383321,2.269,2650.7,2650.5,3.77287]
[1739462383466,3.77216,2651.0,2650.4,3.77292]
[1739462383467,2.269,2650.9,2650.6,3.77273]
[1739462384380,2.269,2651.2,2650.4,3.77293]
[1739462384714,2.269,2650.9,2650.7,3.77249]
[1739462384912,2.269,2650.9,2650.8,3.77244]
[1739462385650,6.04102,2651.1,2650.7,4.53196]
[1739462386005,2.269,2651.1,2650.7,4.53196]
[1739462386334,2.269,2651.1,2650.9,3.77222]
[1739462386483,2.269,2651.1,2650.7,0.7594]
[1739462386484,2.269,2651.4,2650.8,3.77244]
[1739462386680,2.269,2651.3,2650.7,0.7594]
[1739462386880,0.0075,2651.5,2651.1,3.77201]
[1739462387116,0.0075,2651.5,2651.0,3.77205]
[1739462387117,3.77138,2651.6,2651.0,3.77205]
[1739462387327,3.78627,2651.7,2651.1,3.77188]
[1739462387623,9.81096,2651.9,2651.3,3.77163]
[1739462387794,6.03997,2651.9,2651.3,3.77163]
[1739462387991,7.353536,2651.9,2651.4,3.77149]
[1739462388327,2.269,2651.9,2651.4,3.77145]
[1739462388485,6.03989,2651.9,2651.3,3.77163]
[1739462388828,3.77102,2651.8,2651.3,3.77163]
[1739462389029,3.77117,2651.7,2651.1,3.77188]
[1739462389558,6.03998,2651.9,2651.1,3.77188]
[1739462389854,0.015,2651.6,2650.9,0.7791]
[1739462390060,6.04034,2651.6,2651.1,3.77193]
[1739462390556,6.04031,2651.6,2651.0,3.77215]
[1739462391055,6.04066,2651.4,2650.8,3.77234]
[1739462391263,3.77174,2651.3,2650.8,3.77234]
[1739462391612,7.01577922,2651.4,2650.9,3.77229]
[1739462391838,3.24418922,2651.4,2651.0,3.77208]
[1739462392055,2.579,2651.7,2651.1,3.77194]
[1739462392254,3.77088,2651.9,2651.4,7.54308]
[1739462392466,3.77088,2651.9,2651.4,3.77152]
[1739462392627,3.7706,2652.1,2651.4,3.77152]
[1739462392821,3.77092,2651.9,2651.4,3.77152]
[1739462393020,3.77092,2651.9,2651.4,7.54302]
[1739462393258,3.77113,2651.8,2651.2,3.7718]
[1739462393457,3.77119,2651.7,2651.2,3.7718]
[1739462393869,3.82091268,2651.6,2651.1,3.0]
[1739462394074,3.77145,2651.5,2651.1,3.0]
[1739462394218,3.77152,2651.5,2651.1,3.0]
[1739462394548,0.04985985,2651.4,2651.1,3.0]
[1739462394949,3.82146985,2651.4,2651.1,3.0]
[1739462395145,4.58074784,2651.4,2650.8,3.77234]
[1739462395467,3.7718,2651.3,2650.8,3.0]
[1739462395621,3.7721,2651.1,2650.6,4.55207]
[1739462395816,4.89762354,2651.1,2650.6,3.77267]
[1739462396170,0.04962777,2651.0,2650.7,3.77248]
[1739462396548,3.77196,2651.2,2650.7,3.77248]
[1739462396733,0.04962777,2650.9,2650.6,3.77265]
[1739462397061,2.269,2651.2,2650.9,3.77223]
[1739462397269,3.77905,2651.5,2650.6,3.77273]
[1739462397569,0.31,2651.8,2651.2,3.7718]
[1739462397716,0.015,2651.6,2651.2,3.7718]
[1739462397919,0.015,2651.6,2651.2,7.5436]
[1739462398117,0.31,2651.8,2651.4,3.77149]
[1739462398441,3.77124,2651.7,2651.2,3.77185]
[1739462398647,3.77124,2651.7,2651.2,4.607604]
[1739462398848,6.04024,2651.7,2651.2,4.607604]
[1739462399056,6.04024,2651.7,2651.0,4.58565]
[1739462399057,2.269,2651.5,2651.0,4.58565]
[1739462399365,3.77174,2651.3,2650.8,3.77233]
[1739462399548,3.77188,2651.2,2650.8,3.77233]
[1739462399922,6.04088,2651.2,2650.7,1.158473]
[1739462400123,3.77205,2651.1,2650.6,3.77259]
[1739462400777,0.0075,2651.4,2650.5,0.02795135]
[1739462400949,0.0075,2651.4,2650.4,1.53431171]
[1739462401583,0.0075,2651.3,2650.4,1.53431171]
[1739462401814,2.269,2651.1,2650.6,6.77261]
[1739462402012,2.269,2651.1,2650.9,3.77226]
[1739462402393,2.269,2651.1,2650.7,3.77249]
[1739462402598,6.04103,2651.1,2650.7,3.77249]
[1739462403008,2.269,2651.1,2650.6,7.98061917]
[1739462403225,0.015,2651.3,2650.6,7.98061917]
[1739462403529,2.269,2651.1,2650.7,3.77256]
[1739462404402,2.269,2651.0,2650.6,4.98068917]
[1739462404645,2.269,2651.0,2650.7,3.77251]
[1739462405273,6.0483,2651.3,2650.7,3.77258]
[1739462405439,2.269,2651.3,2650.8,3.80034725]
[1739462405644,6.04073,2651.3,2650.9,3.77229]
[1739462406051,3.77188,2651.2,2650.7,3.77258]
[1739462406365,2.269,2651.2,2650.7,3.77258]
[1739462406538,2.269,2651.2,2650.7,0.677258]
[1739462406873,2.269,2651.2,2650.9,3.77222]
[1739462407339,3.77212,2651.1,2650.7,0.677258]
[1739462407539,0.015,2651.6,2650.4,0.7979]
[1739462407540,2.269,2651.0,2650.4,0.7979]
[1739462407741,2.269,2650.5,2649.6,6.8091]
[1739462407976,0.0075,2650.2,2649.6,5.981]
[1739462408131,2.269,2649.9,2649.1,0.8281]
[1739462408333,3.77399,2649.8,2649.3,3.0]
[1739462408635,2.269,2649.9,2649.4,3.77432]
[1739462409264,6.04303,2649.7,2649.3,1.06028]
[1739462409472,2.269,2649.7,2649.3,3.77455]
[1739462409648,2.269,2649.7,2649.2,3.77462]
[1739462409849,9.81716,2649.7,2649.1,3.8281]
[1739462410045,2.269,2649.7,2649.3,3.77457]
[1739462410259,3.77353,2650.1,2649.5,3.77421]
[1739462410450,3.77244,2650.9,2649.1,0.8281]
[1739462410451,3.66408429,2650.6,2649.6,0.02798996]
[1739462410779,3.77329,2650.3,2649.7,4.58197]
[1739462410978,3.77349,2650.1,2649.6,3.0]
[1739462411337,6.04264,2650.0,2649.5,3.0]
[1739462411602,6.04264,2650.0,2649.5,6.77427]
[1739462411883,3.77364,2650.0,2649.5,6.77427]
[1739462412129,3.77364,2650.0,2649.3,3.77451]
[1739462412130,3.77389,2649.8,2649.3,3.77445]
[1739462412255,3.77409,2649.7,2649.2,0.8081]
[1739462412457,3.77409,2649.7,2649.1,4.5166983]
[1739462412652,0.015,2649.9,2648.9,0.7754]
[1739462412885,0.015,2649.9,2648.7,3.77533]
[1739462412886,3.77467,2649.3,2648.7,3.77533]
[1739462413097,3.77436,2649.5,2648.7,4.230403]
[1739462413300,3.77454,2649.4,2648.9,3.77514]
[1739462413511,3.77436,2649.5,2648.9,3.77503]
[1739462413713,3.77436,2649.5,2648.7,4.230423]
[1739462413846,0.015,2649.4,2648.7,4.230373]
[1739462414183,0.015,2649.4,2648.7,4.25838915]
[1739462414341,3.77458,2649.3,2648.7,8.005683]
[1739462414541,3.77458,2649.3,2648.6,0.7754]
[1739462414542,3.77497,2649.1,2648.6,3.0]
[1739462414984,3.82225002,2649.0,2648.3,4.55869]
[1739462415169,0.015,2649.1,2648.4,3.77586]
[1739462415371,3.77538,2648.8,2648.3,0.7827]
[1739462415572,3.77547,2648.7,2648.2,0.76857721]
[1739462415891,3.77547,2648.7,2648.2,3.0]
[1739462416078,0.377547,2648.7,2648.1,5.981]
[1739462416245,3.77583,2648.5,2648.1,5.981]
[1739462416650,0.0075,2648.6,2648.1,5.981]
[1739462416862,3.77575,2648.5,2648.1,5.981]
[1739462417050,0.015,2648.6,2648.1,5.981]
[1739462417444,3.79066,2648.6,2648.1,9.75719]
[1739462417643,0.015,2648.6,2648.1,9.75719]
[1739462417860,3.7758,2648.5,2648.1,5.981]
[1739462418075,3.7906,2648.6,2648.1,9.75723]
[1739462418273,0.04789547,2648.4,2648.1,9.75723]
[1739462418480,0.04618652,2648.5,2648.1,9.75723]
[1739462418661,0.015,2648.6,2648.1,9.75723]
[1739462418878,0.015,2648.6,2648.1,5.981]
[1739462419076,0.04618652,2648.5,2648.1,5.981]
[1739462419250,3.82192652,2648.5,2648.1,5.981]
[1739462419449,3.77587,2648.4,2648.1,5.981]
[1739462419689,0.04615509,2648.3,2648.1,5.981]
[1739462419892,3.77574,2648.5,2648.1,5.981]
[1739462420129,0.04615509,2648.2,2648.1,5.981]
[1739462420431,3.77574,2648.5,2648.1,5.981]
[1739462420639,0.04615509,2648.2,2648.1,5.981]
[1739462420807,3.77574,2648.5,2648.1,5.981]
[1739462420995,0.04613623,2648.2,2648.1,9.75729]
[1739462421338,3.77518,2648.9,2648.2,3.77614]
[1739462421641,7.55075,2648.8,2648.2,3.77614]
[1739462421846,3.77543,2648.7,2648.2,3.77614]
[1739462422008,3.77537,2648.8,2648.2,3.77607]
[1739462422209,0.015,2648.9,2648.2,0.8051]
[1739462422392,0.015,2648.9,2648.5,3.77566]
[1739462422593,3.77429,2649.5,2648.8,3.77523]
[1739462422836,3.77494,2649.1,2648.5,3.77559]
[1739462423145,3.77524,2648.9,2648.4,3.77586]
[1739462423342,3.77531,2648.8,2648.3,1.1915701]
[1739462423545,0.015,2648.8,2648.3,1.1915701]
[1739462423713,3.77552,2648.7,2648.2,3.77609]
[1739462423920,3.77552,2648.7,2647.9,0.7905]
[1739462423921,0.015,2648.6,2648.1,9.75719]
[1739462424240,0.015,2648.6,2648.1,3.77619]
[1739462424447,0.0075,2648.4,2648.1,3.77619]
[1739462424803,0.0075,2648.5,2648.1,3.77619]
[1739462425373,0.04644422,2648.4,2648.1,3.77621]
[1739462425724,3.77615,2648.2,2647.5,0.8077]
[1739462426042,3.79101,2648.3,2647.7,3.77673]
[1739462426370,0.0075,2648.0,2647.2,0.8077]
[1739462426676,3.82237994,2648.2,2647.7,3.77677]
[1739462426828,2.269,2648.1,2647.7,3.77677]
[1739462427211,0.04612994,2648.1,2648.0,3.77643]
[1739462427362,0.04612994,2648.1,2647.8,3.77662]
[1739462427521,0.015,2648.4,2648.0,3.77637]
[1739462427862,2.284,2648.4,2648.1,3.77619]
[1739462428085,2.284,2648.4,2647.7,1.563084]
[1739462428086,2.284,2648.4,2647.9,3.7765]
[1739462428224,2.284,2648.4,2647.9,3.77644]
[1739462428586,2.284,2648.4,2648.0,3.77642]
[1739462428728,2.284,2648.4,2647.9,3.77654]
[1739462428930,0.31,2648.5,2648.1,3.77619]
[1739462429123,7.5513,2648.6,2648.1,3.77619]
[1739462429322,0.31,2648.8,2647.9,0.9116344]
[1739462429523,6.04467,2648.6,2648.1,3.77628]
[1739462429723,6.04467,2648.6,2648.2,3.77613]
[1739462429987,0.0075,2648.8,2647.9,0.9116344]
[1739462430123,3.77544,2648.7,2647.9,0.9116344]
[1739462430481,3.77569,2648.6,2648.0,4.16749344]
[1739462430648,3.77569,2648.6,2648.0,7.94385344]
[1739462430848,2.2765,2648.8,2648.3,3.77589]
[1739462431027,2.269,2648.8,2648.3,3.77592]
[1739462431232,3.77552,2648.7,2648.2,3.77605]
[1739462431460,2.269,2648.8,2648.2,0.79435534]
[1739462431663,6.0598,2648.5,2647.9,3.77647]
[1739462431848,2.284,2648.5,2648.0,3.77635]
[1739462432028,2.284,2648.5,2648.1,3.7762]
[1739462432424,2.284,2648.5,2648.3,3.77598]
[1739462432667,2.269,2648.7,2648.3,3.77595]
[1739462432865,2.269,2648.9,2648.5,3.77568]
[1739462433075,0.015,2648.8,2648.5,3.77568]
[1739462433571,0.015,2648.8,2648.5,7.55133]
[1739462433748,0.015,2648.9,2648.6,3.77555]
[1739462433959,0.015,2648.9,2648.5,3.77565]
[1739462434505,2.889901,2648.9,2647.9,4.58585]
[1739462434799,6.04474,2648.5,2648.1,3.77615]
[1739462434983,3.77586,2648.4,2647.9,3.77657]
[1739462435389,6.04556,2648.0,2647.4,4.55928]
[1739462435563,3.77665,2647.9,2647.4,3.77718]
[1739462435760,3.77679,2647.8,2647.2,4.55956]
[1739462435966,3.77703,2647.6,2647.2,4.55956]
[1739462436161,3.77679,2647.8,2647.0,3.77777]
[1739462436404,3.77679,2647.8,2647.1,4.235087]
[1739462436405,3.77686,2647.7,2647.1,4.235087]
[1739462436715,0.04721358,2647.6,2646.9,0.7971]
[1739462436915,3.77736,2647.4,2646.8,3.77813]
[1739462437066,3.77736,2647.4,2646.9,3.0]
[1739462437261,3.77736,2647.4,2646.9,3.77797]
[1739462437587,2.269,2647.8,2646.8,3.0]
[1739462437588,3.77674,2647.8,2646.8,3.0]
[1739462437906,3.77674,2647.8,2647.3,3.77735]
[1739462438060,3.7918,2647.8,2647.3,3.77735]
[1739462438266,3.7918,2647.8,2647.3,7.5547]
[1739462438267,0.015,2647.8,2647.3,7.5547]
[1739462438494,0.015,2647.8,2647.3,3.77735]
[1739462438798,6.06081,2647.8,2647.1,3.77763]
[1739462438964,3.298747,2647.8,2647.2,3.77753]
[1739462439288,3.298747,2647.8,2647.3,3.77742]
[1739462439457,0.04558283,2647.7,2647.3,7.55477]
[1739462439663,0.04558283,2647.7,2647.1,3.77762]
[1739462439891,3.82244283,2647.7,2647.0,4.57814]
[1739462440076,0.04721393,2647.6,2647.0,4.57814]
[1739462440272,0.04558283,2647.7,2647.0,0.8003]
[1739462440505,6.0457,2647.9,2647.4,3.77721]
[1739462440681,0.04558283,2647.6,2647.2,3.77752]
[1739462441303,0.04558283,2647.6,2647.2,7.55502]
[1739462441466,0.04558283,2647.6,2647.2,3.7775]
[1739462441661,0.04558283,2647.6,2647.3,3.77735]
[1739462441868,6.04566,2647.9,2647.2,3.7775]
[1739462442169,0.04507976,2647.8,2647.2,3.7775]
[1739462442396,0.04507976,2647.8,2647.3,0.8147]
[1739462442596,0.04507976,2647.8,2647.7,4.59156]
[1739462442860,6.04458,2648.6,2648.1,3.77628]
[1739462443141,6.04458,2648.6,2647.9,3.77654]
[1739462443142,3.81792426,2648.5,2648.0,3.77642]
[1739462443299,3.77588,2648.4,2647.9,3.77654]
[1739462443607,3.77587,2648.4,2647.9,7.55302]
[1739462443809,0.04213426,2648.3,2648.0,3.77635]
[1739462444041,0.04213426,2648.3,2648.1,3.77621]
[1739462444199,3.77572,2648.5,2648.0,4.531603]
[1739462447143,0.0408844,2647.5,2647.4,6.77721]
[1739462447356,3.77686,2647.7,2647.2,4.39565163]
[1739462447558,0.0408844,2647.5,2647.4,3.77721]
[1739462447696,2.269,2647.8,2647.4,3.0]
[1739462448003,0.04065762,2647.7,2647.4,3.0]
[1739462449005,0.04065762,2647.7,2647.4,3.77725]
[1739462449235,0.04065762,2647.7,2647.5,3.77704]
[1739462449674,0.04065762,2647.7,2647.6,3.777]
[1739462450224,3.78324,2648.5,2648.0,3.77634]
[1739462450365,0.0075,2648.5,2648.1,3.77618]
[1739462450558,0.015,2648.5,2648.2,3.77603]
[1739462450755,0.015,2648.5,2648.1,3.77618]
[1739462450756,0.605901,2648.9,2648.1,0.7664]
[1739462451103,0.31,2649.4,2648.5,3.77564]
[1739462451285,0.015,2649.1,2648.5,3.77564]
[1739462451481,0.015,2648.9,2648.3,4.54827278]
[1739462451687,6.04401,2649.0,2648.5,3.7757]
[1739462452137,9.81913,2649.0,2648.5,3.7757]
[1739462452270,6.04401,2649.0,2648.5,3.7757]
[1739462452468,8.36232107,2649.5,2648.5,3.7757]
[1739462452469,0.73879166,2649.8,2648.6,4.58787]
[1739462452787,3.77394,2649.8,2649.1,3.77481]
[1739462452978,0.31,2650.1,2649.2,3.77459]
[1739462452979,3.77381,2649.9,2649.2,3.77459]
[1739462453384,3.77381,2649.9,2649.2,7.54922]
[1739462453385,3.77389,2649.8,2649.2,7.54922]
[1739462453604,3.77413,2649.7,2649.0,3.77493]
[1739462453790,3.7743,2649.5,2649.0,3.77493]
[1739462454189,3.77415,2649.6,2649.0,3.77493]
[1739462454391,0.03902749,2649.4,2648.8,4.51521143]
[1739462454592,3.77434,2649.5,2648.7,3.77542]
[1739462454593,3.77467,2649.3,2648.7,3.77542]
[1739462454820,0.015,2649.2,2648.6,3.8123]
[1739462455007,3.7751,2649.0,2648.4,3.7758]
[1739462455211,3.7751,2649.0,2648.3,0.7877]
[1739462455212,3.77523,2648.9,2648.3,4.56361]
[1739462455511,0.04106796,2648.8,2648.3,9.14995675]
[1739462455812,0.04106796,2648.8,2648.3,3.0]
[1739462456110,3.81636796,2648.8,2648.3,3.0]
[1739462456311,7.55105,2648.7,2648.1,3.77619]
[1739462456468,3.77558,2648.6,2648.0,8.34034]
[1739462456669,3.77558,2648.6,2648.0,5.47218365]
[1739462456882,2.269,2649.1,2648.4,3.77586]
[1739462456883,0.04106796,2648.5,2648.4,3.77586]
[1739462457083,3.77495,2649.1,2648.4,3.77586]
[1739462457361,3.77495,2649.1,2648.5,3.77564]
[1739462457362,0.04089798,2649.0,2648.5,3.77564]
[1739462457473,0.04089798,2649.0,2648.4,3.77586]
[1739462457675,3.77536,2648.8,2648.2,3.77609]
[1739462457873,3.77536,2648.8,2648.2,3.77607]
[1739462458076,3.82266446,2648.7,2648.2,3.77607]
[1739462458398,0.04089798,2648.7,2648.3,3.77599]
[1739462458712,0.04083502,2648.6,2648.2,3.77607]
[1739462459090,0.04083502,2648.5,2648.2,3.77607]
[1739462459292,7.55113,2648.7,2648.0,8.47218365]
[1739462459502,3.81649502,2648.6,2648.1,4.69760802]
[1739462460080,3.82291736,2648.5,2648.0,3.77642]
[1739462460324,3.82291736,2648.5,2647.9,8.29447651]
[1739462460476,3.7755,2648.7,2648.1,3.77621]
[1739462460477,0.04083502,2648.4,2648.1,3.77621]
[1739462460675,3.79038,2648.8,2648.1,3.77621]
[1739462460870,3.79038,2648.8,2648.1,4.22798065]
[1739462461120,0.0075,2648.6,2648.2,3.77614]
[1739462461333,0.0075,2648.6,2648.4,3.77585]
[1739462461532,3.7831,2648.6,2648.1,4.22805065]
[1739462461743,2.30983502,2648.5,2648.2,3.77613]
[1739462461948,0.04083502,2648.5,2648.2,3.77613]
[1739462462089,0.04083502,2648.5,2648.3,3.77592]
[1739462462294,0.04083502,2648.5,2648.2,3.77613]
[1739462462610,0.04083502,2648.5,2648.2,4.19884007]
[1739462462810,0.04083502,2648.5,2648.4,3.77586]
[1739462463006,4.08407,2649.0,2648.5,3.77572]
[1739462463238,6.04381,2649.2,2648.3,0.8051]
[1739462463533,0.0075,2649.3,2648.8,3.77526]
[1739462463534,6.05111,2649.3,2648.8,3.77526]
[1739462463705,0.0075,2649.2,2648.6,3.77549]
[1739462463907,3.78224,2649.2,2648.6,0.755124]
[1739462464234,3.77494,2649.1,2648.6,0.755124]
[1739462464443,3.78223,2649.2,2648.7,3.77535]
[1739462464600,3.78223,2649.2,2648.6,4.530574]
[1739462464798,3.77498,2649.1,2648.6,4.530654]
[1739462465059,0.0075,2649.2,2648.7,3.77533]
[1739462465269,2.269,2649.5,2648.9,3.77503]
[1739462465397,3.77466,2649.3,2648.7,3.77533]
[1739462465763,7.54956,2649.2,2648.7,3.77533]
[1739462465963,3.77491,2649.1,2648.7,3.77533]
[1739462466108,3.77488,2649.1,2648.7,4.60786072]
[1739462466468,3.77488,2649.1,2648.7,0.83253072]
[1739462466597,0.0621901,2649.0,2647.9,0.8224]
[1739462466796,6.05932,2648.8,2647.9,1.57637245]
[1739462467040,3.77601,2648.3,2647.9,0.8224]
[1739462467243,6.05972,2648.5,2647.6,0.8052]
[1739462467441,3.77714,2647.5,2647.3,0.8052]
[1739462467740,3.77714,2647.5,2647.0,0.8052]
[1739462467741,3.77743,2647.3,2647.0,0.8052]
[1739462467945,3.77743,2647.3,2646.8,4.54850189]
[1739462468094,3.77743,2647.3,2646.8,0.77045189]
[1739462468299,0.309,2647.8,2646.6,0.8052]
[1739462468300,3.7778,2647.1,2646.6,0.8052]
[1739462468539,3.77769,2647.2,2646.6,1.641418]
[1739462468945,3.79204,2647.6,2646.6,0.836218]
[1739462468946,3.77801,2646.9,2646.6,0.836218]
[1739462469242,2.269,2647.3,2646.6,3.77829]
[1739462469243,6.35544,2647.3,2646.6,3.77829]
[1739462469443,0.03825656,2646.8,2646.6,3.77829]
[1739462469646,0.015,2647.0,2646.4,3.77863]
[1739462469941,0.015,2647.0,2646.5,3.0]
[1739462470140,0.03825656,2646.9,2646.4,3.77861]
[1739462470343,0.03825656,2646.9,2646.5,3.45509731]
[1739462471520,0.03825656,2646.9,2646.5,7.23364731]
[1739462471718,0.03825656,2646.9,2646.5,3.45509731]
[1739462472123,0.03825656,2646.9,2646.5,7.23352731]
[1739462472620,3.81627656,2646.9,2646.3,0.77236309]
[1739462472837,3.77829,2646.7,2646.2,5.986]
[1739462473050,3.7786,2646.5,2646.2,5.986]
[1739462473245,3.81643525,2646.6,2646.2,5.986]
[1739462473508,0.03798525,2646.5,2646.2,5.986]
[1739462474135,0.03798525,2646.5,2646.4,3.77871]
[1739462474307,4.08661,2647.2,2646.6,3.77837]
[1739462474508,0.03649068,2647.1,2646.5,3.80666546]
[1739462474708,6.77698,2647.7,2647.0,3.77786]
[1739462474955,3.81349068,2647.6,2647.1,3.7777]
[1739462475201,0.03649068,2647.6,2647.1,0.755566]
[1739462475456,3.77637,2648.1,2647.5,3.77707]
[1739462475651,8.30355621,2648.5,2647.8,3.77669]
[1739462475958,0.309,2648.6,2647.7,0.7892]
[1739462476172,0.309,2648.6,2648.3,3.77595]
[1739462476340,0.309,2648.6,2648.5,3.77572]
[1739462476529,3.77455,2649.4,2648.8,3.7752]
[1739462476735,4.08355,2649.4,2648.7,3.77531]
[1739462476928,3.77475,2649.2,2648.6,3.77554]
[1739462477127,3.77475,2649.2,2648.5,4.530838]
[1739462477329,0.0075,2649.3,2648.5,0.755158]
[1739462477661,4.08346,2649.4,2648.7,3.77536]
[1739462478229,3.77468,2649.3,2648.7,3.77536]
[1739462478533,4.08346,2649.4,2648.7,3.77536]
[1739462478756,0.309,2649.4,2648.7,3.77536]
[1739462478968,8.05189107,2649.8,2648.5,0.74292586]
[1739462478969,3.7739,2649.8,2649.1,3.77475]
[1739462479177,3.7739,2649.8,2649.2,0.377475]
[1739462479467,3.7739,2649.8,2649.2,4.152085]
[1739462479991,0.03680922,2649.7,2649.2,4.152085]
[1739462480283,3.77417,2649.6,2648.7,3.77543]
[1739462480580,0.015,2649.2,2648.6,3.77555]
[1739462480733,0.015,2649.2,2648.5,3.77568]
[1739462480934,3.77502,2649.0,2648.4,0.7929]
[1739462481172,3.81336761,2649.1,2648.5,3.0]
[1739462481468,3.81336761,2649.1,2647.8,3.77667]
[1739462481469,3.77531,2648.8,2648.2,3.77613]
[1739462481775,0.43003103,2649.1,2648.3,3.776]